bitfinex-derivatives/quotes_SOLF0:USTF0_20240830
["timestamp","ask_amount","ask_price","bid_price","bid_amount"]
[1724982231981,3.5716,139.97,139.96,0.05354486]
[1724982236272,3.61656364,139.98,139.96,0.05354486]
[1724982249582,3.5716,139.97,139.96,0.05354486]
[1724982251088,0.04516364,139.98,139.96,0.05354486]
[1724982251294,0.04516364,139.98,139.96,11.03354486]
[1724982251788,0.04516364,139.98,139.96,14.60534486]
[1724982252191,0.04516364,139.98,139.96,11.03354486]
[1724982252387,3.61666364,139.98,139.96,11.03354486]
[1724982255695,0.04516364,139.98,139.96,14.60524486]
[1724982258703,0.04516364,139.98,139.97,3.5716]
[1724982259000,0.04516364,139.98,139.96,11.03354486]
[1724982260292,0.04516364,139.98,139.96,14.60534486]
[1724982264106,0.04516364,139.98,139.97,3.5716]
[1724982270516,0.04516364,139.98,139.96,3.62534486]
[1724982271614,0.04516364,139.98,139.96,0.05354486]
[1724982272207,3.61656364,139.98,139.96,0.05354486]
[1724982274823,10.98,139.97,139.92,4.68]
[1724982275016,10.98,139.93,139.86,1.3229]
[1724982275215,10.98,139.91,139.84,10.98]
[1724982275424,10.98,139.88,139.82,1.3229]
[1724982275622,10.98,139.86,139.78,1.2823]
[1724982275820,3.5755,139.82,139.81,0.05163723]
[1724982276025,0.04788673,139.83,139.81,0.05163723]
[1724982277726,0.04788673,139.83,139.81,11.03163723]
[1724982280327,0.04788673,139.83,139.81,0.05163723]
[1724982280931,3.62308673,139.83,139.81,0.05163723]
[1724982282428,3.62308673,139.83,139.81,11.03163723]
[1724982282429,0.04788673,139.83,139.81,11.03163723]
[1724982287131,0.04788673,139.83,139.81,0.05163723]
[1724982288432,3.62308673,139.83,139.81,0.05163723]
[1724982289840,3.5754,139.82,139.81,0.05163723]
[1724982295936,3.5754,139.82,139.81,11.03163723]
[1724982300846,3.5754,139.82,139.81,0.05163723]
[1724982305749,0.04788673,139.83,139.81,11.03163723]
[1724982306452,0.04788673,139.83,139.81,0.05163723]
[1724982307854,3.5754,139.82,139.81,0.05163723]
[1724982308055,0.04788673,139.83,139.81,0.05163723]
[1724982308744,3.62328673,139.83,139.81,0.05163723]
[1724982310246,3.5754,139.82,139.81,0.05163723]
[1724982312955,11.02788673,139.83,139.74,15.66]
[1724982312956,10.98,139.83,139.74,3.5773]
[1724982313153,10.98,139.78,139.73,2.6406]
[1724982313451,3.5769,139.77,139.73,2.6406]
[1724982313950,0.05273444,139.76,139.74,0.04506445]
[1724982314343,3.62983444,139.76,139.74,0.04506445]
[1724982314851,0.05273444,139.76,139.74,0.04506445]
[1724982316453,3.62983444,139.76,139.74,0.04506445]
[1724982316850,0.05273444,139.76,139.74,0.04506445]
[1724982317155,14.5572,139.75,139.74,0.04506445]
[1724982317951,10.98,139.75,139.74,0.04506445]
[1724982318146,3.62973444,139.76,139.74,0.04506445]
[1724982320158,10.98,139.75,139.74,0.04506445]
[1724982321661,14.5572,139.75,139.74,0.04506445]
[1724982322158,10.98,139.75,139.74,0.04506445]
[1724982323956,14.5572,139.75,139.74,0.04506445]
[1724982325263,0.05273444,139.76,139.74,0.04506445]
[1724982326462,0.05273444,139.76,139.74,3.62246445]
[1724982326652,0.05273444,139.76,139.74,0.04506445]
[1724982326853,0.05273444,139.76,139.75,3.5772]
[1724982327058,0.05273444,139.76,139.74,0.04506445]
[1724982329962,0.05273444,139.76,139.74,3.62256445]
[1724982330855,0.05273444,139.76,139.74,0.04506445]
[1724982333362,0.05273444,139.76,139.74,3.62256445]
[1724982334761,0.05273444,139.76,139.75,3.5772]
[1724982334966,1.8054,139.85,139.75,10.98]
[1724982335167,10.98,139.82,139.75,10.98]
[1724982335363,10.98,139.82,139.77,3.5766]
[1724982335664,10.98,139.8,139.75,10.98]
[1724982335864,0.05307901,139.79,139.76,0.054683]
[1724982336066,0.05307901,139.79,139.76,3.631483]
[1724982337762,0.05307901,139.79,139.77,3.5767]
[1724982338166,0.05307901,139.79,139.76,0.054683]
[1724982338167,0.05307901,139.79,139.76,11.034683]
[1724982338365,1.8069,139.89,139.78,10.98]
[1724982338566,10.98,139.86,139.8,10.98]
[1724982338767,10.98,139.85,139.79,12.3323]
[1724982339269,3.5751,139.84,139.79,15.9084]
[1724982339471,0.0462514,139.83,139.81,0.04649356]
[1724982341466,0.0462514,139.83,139.81,3.62199356]
[1724982341666,0.0462514,139.83,139.82,10.98]
[1724982341967,14.5541,139.88,139.84,3.5749]
[1724982342163,95.33032164,139.9,139.83,10.98]
[1724982342373,3.5738,139.89,139.83,10.98]
[1724982342574,3.5738,139.89,139.84,3.5748]
[1724982342771,3.5738,139.89,139.85,0.04562006]
[1724982342772,0.03001214,139.88,139.85,0.04562006]
[1724982343678,0.03001214,139.88,139.86,10.98]
[1724982344186,0.03001214,139.88,139.86,14.5542]
[1724982344567,0.03001214,139.88,139.85,0.04562006]
[1724982344876,0.03001214,139.88,139.85,3.62022006]
[1724982347974,0.03001214,139.88,139.86,3.5744]
[1724982348377,0.03001214,139.88,139.85,4.98432006]
[1724982353274,0.03001214,139.88,139.86,3.5744]
[1724982353669,0.03001214,139.88,139.86,14.5544]
[1724982354372,0.03001214,139.88,139.87,14.5542]
[1724982354574,4.68,139.91,139.87,10.98]
[1724982354768,15.66,139.94,139.87,10.98]
[1724982354977,3.5733,139.91,139.87,14.5541]
[1724982355576,3.5733,139.91,139.88,0.04517619]
[1724982365077,15.66,139.94,139.88,0.04517619]
[1724982365385,10.98,139.94,139.88,0.04517619]
[1724982365779,3.573,139.92,139.88,3.61897619]
[1724982366880,3.5732,139.91,139.88,0.04517619]
[1724982368482,3.5736,139.9,139.88,0.04517619]
[1724982368782,10.98,139.92,139.88,0.04517619]
[1724982369581,3.5734,139.91,139.88,0.04517619]
[1724982372278,3.5734,139.9,139.88,0.04517619]
[1724982372679,4.68,139.94,139.88,3.61907619]
[1724982372883,3.5731,139.92,139.88,3.61907619]
[1724982373783,3.5731,139.92,139.88,14.59907619]
[1724982375082,3.5727,139.93,139.89,3.5736]
[1724982376485,3.5727,139.93,139.9,10.98]
[1724982377587,4.68,139.96,139.9,3.5732]
[1724982377785,4.68,139.96,139.92,0.05016032]
[1724982377984,3.5726,139.93,139.92,0.05016032]
[1724982378190,4.68,139.96,139.92,0.05016032]
[1724982378495,3.5723,139.95,139.92,0.05016032]
[1724982378787,4.68,139.97,139.92,0.05016032]
[1724982379783,10.98,139.98,139.92,0.05016032]
[1724982380177,335.0,140.04,139.93,10.98]
[1724982380377,10.98,139.99,139.96,0.0520661]
[1724982380576,10.98,139.97,139.96,0.0520661]
[1724982380784,14.5516,139.97,139.96,0.0520661]
[1724982380986,3.5716,139.97,139.96,0.0520661]
[1724982383185,8.2516,139.97,139.96,0.0520661]
[1724982383585,3.5716,139.97,139.96,0.0520661]
[1724982383889,8.2516,139.97,139.96,0.0520661]
[1724982384198,342.142,140.04,139.96,0.0520661]
[1724982384199,3.5714,139.98,139.96,0.0520661]
[1724982384384,14.63681154,140.0,139.96,0.0520661]
[1724982384586,15.66,140.0,139.96,0.0520661]
[1724982384787,3.5716,139.97,139.96,0.0520661]
[1724982386581,14.5516,139.97,139.96,0.0520661]
[1724982387392,10.98,139.97,139.88,10.98]
[1724982387591,10.98,139.94,139.88,10.98]
[1724982387797,3.5733,139.91,139.88,10.98]
[1724982388091,15.66,139.94,139.88,10.98]
[1724982388290,0.05003445,139.92,139.9,0.05148373]
[1724982388596,3.5731,139.91,139.9,0.05148373]
[1724982390593,0.05003445,139.92,139.9,0.05148373]
[1724982392193,3.5731,139.91,139.9,0.05148373]
[1724982392900,14.5531,139.91,139.9,0.05148373]
[1724982393396,10.98,139.91,139.83,1.3246]
[1724982393595,10.98,139.88,139.82,10.98]
[1724982393800,10.98,139.87,139.8,2.741]
[1724982394089,10.98,139.87,139.81,14.5555]
[1724982394291,3.5745,139.86,139.81,14.5555]
[1724982394495,0.05083392,139.85,139.84,10.98]
[1724982395799,3.5738,139.89,139.84,10.98]
[1724982395988,3.5738,139.89,139.87,10.98]
[1724982396294,3.5738,139.89,139.86,10.98]
[1724982396996,0.05125606,139.89,139.87,10.98]
[1724982397195,0.05125606,139.89,139.88,10.98]
[1724982400499,0.05125606,139.89,139.88,14.5539]
[1724982400699,4.68,139.94,139.88,10.98]
[1724982400996,4.68,139.94,139.9,10.98]
[1724982401402,3.5729,139.92,139.9,10.98]
[1724982401899,3.5729,139.92,139.9,11.03101453]
[1724982403095,1.0383,139.98,139.91,10.98]
[1724982403297,3.63108954,140.0,139.93,11.03325188]
[1724982403493,15.66,139.99,139.93,0.05325188]
[1724982403692,10.98,139.96,139.93,0.05325188]
[1724982403897,10.98,139.94,139.93,0.05325188]
[1724982404209,14.5524,139.94,139.93,0.05325188]
[1724982405205,3.5735,139.9,139.86,1.4072]
[1724982405401,10.98,139.89,139.85,1.4092]
[1724982405701,3.5741,139.88,139.85,1.4092]
[1724982406005,3.62241491,139.88,139.85,1.45884296]
[1724982406503,3.5743,139.87,139.85,1.45884296]
[1724982406703,3.5743,139.87,139.85,0.04964296]
[1724982407202,3.62231491,139.88,139.85,0.04964296]
[1724982409597,3.5742,139.87,139.85,0.04964296]
[1724982410200,0.04831491,139.88,139.85,0.04964296]
[1724982410201,3.62231491,139.88,139.85,0.04964296]
[1724982414809,0.04831491,139.88,139.85,0.04964296]
[1724982416001,0.04831491,139.88,139.85,3.62414296]
[1724982416201,0.04831491,139.88,139.85,0.04964296]
[1724982416606,0.04831491,139.88,139.86,3.5744]
[1724982417598,0.04831491,139.88,139.87,3.5742]
[1724982418003,0.04831491,139.88,139.86,1.3899]
[1724982418406,0.04831491,139.88,139.86,4.9641]
[1724982419214,0.04831491,139.88,139.87,3.5742]
[1724982419704,1.9401,139.98,139.87,3.5742]
[1724982419705,27.45,139.96,139.87,27.45]
[1724982419904,27.45,139.96,139.87,30.1652]
[1724982420112,3.5727,139.93,139.87,30.1652]
[1724982420408,27.45,139.96,139.87,30.1652]
[1724982420605,32.13,139.96,139.9,0.05443901]
[1724982420805,4.68,139.95,139.9,0.05443901]
[1724982421311,3.5728,139.93,139.9,0.05443901]
[1724982422311,3.573,139.92,139.9,0.05443901]
[1724982426016,3.5731,139.91,139.9,0.05443901]
[1724982426210,4.66,139.95,139.9,0.05443901]
[1724982426920,3.5721,139.96,139.92,3.5728]
[1724982427612,3.5718,139.97,139.9,27.50443901]
[1724982427812,3.5718,139.97,139.92,0.05242893]
[1724982428007,3.5718,139.97,139.92,27.50242893]
[1724982428208,3.5718,139.97,139.93,2.6393]
[1724982428909,3.5718,139.97,139.93,6.2117]
[1724982429222,3.5713,139.99,139.93,2.6393]
[1724982429511,3.5713,139.99,139.95,0.04584554]
[1724982430112,3.5713,139.99,139.95,11.01584554]
[1724982431211,3.5713,139.99,139.95,14.58784554]
[1724982431418,4.66,140.02,139.95,11.01584554]
[1724982431716,100.88740503,140.03,139.97,10.97]
[1724982432018,3.5704,140.02,139.99,0.05063298]
[1724982432923,10.97,140.02,139.99,0.05063298]
[1724982434021,3.5708,140.01,139.99,0.05063298]
[1724982434517,3.5704,140.02,139.99,0.05063298]
[1724982435314,10.97,140.04,139.99,0.05063298]
[1724982436116,4.66,140.05,139.99,0.05063298]
[1724982436923,3.5704,140.02,139.99,0.05063298]
[1724982437316,4.66,140.05,139.99,0.05063298]
[1724982437719,1.9854,140.09,139.99,27.47063298]
[1724982437720,27.42,140.08,139.99,27.47063298]
[1724982438021,4.66,140.07,140.02,0.05498162]
[1724982438220,32.08,140.08,140.02,0.05498162]
[1724982438618,107.29507283,140.1,140.02,0.05498162]
[1724982438619,134.71507283,140.1,140.02,0.05498162]
[1724982438818,138.32292254,140.1,140.02,0.05498162]
[1724982439124,3.5695,140.06,140.02,0.05498162]
[1724982441532,3.5691,140.07,140.02,3.62528162]
[1724982441729,4.66,140.09,140.02,0.05498162]
[1724982441923,134.71507283,140.1,140.02,0.05498162]
[1724982442227,3.5695,140.06,140.02,0.05498162]
[1724982444619,3.5695,140.06,140.02,3.62528162]
[1724982445527,3.5695,140.06,140.02,0.05498162]
[1724982446524,3.57,140.04,140.02,0.05498162]
[1724982447838,32.08,140.09,140.02,0.05498162]
[1724982448533,3.5691,140.07,140.02,27.47498162]
[1724982449240,4.66,140.09,140.02,27.47498162]
[1724982449421,4.66,140.09,140.04,3.5697]
[1724982449624,4.66,140.09,140.05,0.05237775]
[1724982449826,78.71507283,140.1,140.05,0.05237775]
[1724982450033,3.569,140.08,140.05,0.05237775]
[1724982451527,3.5686,140.09,140.05,0.05237775]
[1724982454029,3.5686,140.09,140.05,3.62187775]
[1724982454230,3.5686,140.09,140.05,0.05237775]
[1724982454426,3.569,140.08,140.05,0.05237775]
[1724982454939,3.5691,140.07,140.05,0.05237775]
[1724982455731,3.5707,140.01,139.95,27.42]
[1724982455932,32.08,140.05,139.95,27.42]
[1724982456132,35.64072049,140.05,139.95,27.42]
[1724982456329,35.64072049,140.05,139.95,30.992]
[1724982456530,0.04814607,140.01,139.99,0.05317063]
[1724982458335,3.5708,140.0,139.99,0.05317063]
[1724982461335,3.61874607,140.01,139.99,0.05317063]
[1724982461939,0.04814607,140.01,139.99,0.05317063]
[1724982469751,3.61884607,140.01,139.99,0.05317063]
[1724982470141,0.04814607,140.01,139.99,0.05317063]
[1724982470343,3.5708,140.0,139.99,0.05317063]
[1724982472351,3.61884607,140.01,139.99,0.05317063]
[1724982480058,3.5708,140.0,139.99,0.05317063]
[1724982481161,3.61884607,140.01,139.99,0.05317063]
[1724982484076,3.61884607,140.01,139.99,11.02317063]
[1724982484867,0.04814607,140.01,139.99,11.02317063]
[1724982486273,0.04814607,140.01,139.99,14.59427063]
[1724982492077,0.04814607,140.01,140.0,14.5408]
[1724982495276,3.5697,140.05,140.02,3.5703]
[1724982495468,3.5697,140.05,140.02,14.5403]
[1724982495978,3.5693,140.06,140.03,3.57]
[1724982496280,3.5693,140.06,140.03,3.62056103]
[1724982496771,3.5692,140.07,140.04,14.5398]
[1724982498577,3.5689,140.08,140.04,14.5398]
[1724982501670,3.5691,140.07,140.03,14.59056103]
[1724982503280,4.66,140.11,140.05,14.5395]
[1724982503478,15.63,140.11,140.07,0.04789815]
[1724982503678,10.97,140.11,140.07,0.04789815]
[1724982503875,15.63,140.11,140.07,0.04789815]
[1724982504080,3.5688,140.09,140.07,0.04789815]
[1724982504886,3.5688,140.08,140.07,0.04789815]
[1724982505382,10.97,140.09,140.0,1.3288]
[1724982505594,43.88,140.14,139.99,10.97]
[1724982505595,10.97,140.05,139.99,10.97]
[1724982506090,3.5703,140.03,139.99,10.97]
[1724982506286,10.97,140.03,139.97,12.2536]
[1724982506484,0.04704649,140.01,139.99,0.05006439]
[1724982507689,0.04704649,140.01,140.0,10.97]
[1724982508087,0.04704649,140.01,140.0,14.5408]
[1724982509989,3.5694,140.06,140.02,3.5703]
[1724982510195,3.5694,140.06,140.04,10.97]
[1724982510385,10.97,140.08,140.02,10.97]
[1724982510580,3.5696,140.05,140.01,10.97]
[1724982510983,3.5696,140.05,140.02,0.04748531]
[1724982511385,3.5692,140.07,140.02,11.01748531]
[1724982511586,3.5692,140.07,140.03,0.05131042]
[1724982511800,4.66,140.09,140.03,0.05131042]
[1724982512004,3.5693,140.07,140.03,0.05131042]
[1724982513794,559.0,140.16,140.03,0.05131042]
[1724982513992,10.97,140.14,140.08,11.01877273]
[1724982514188,15.63,140.14,140.08,11.01877273]
[1724982514599,10.97,140.14,140.08,11.01877273]
[1724982514797,15.63,140.14,140.08,11.01877273]
[1724982515196,1.9759,140.18,140.1,10.97]
[1724982515402,15.63,140.17,140.13,0.05325499]
[1724982515598,10.97,140.15,140.13,0.05325499]
[1724982515797,3.5673,140.14,140.13,0.05325499]
[1724982524195,3.5684,140.1,140.06,2.6653]
[1724982524601,27.42,140.15,140.06,2.6653]
[1724982524804,27.42,140.12,140.04,27.42]
[1724982525000,27.42,140.12,139.99,1.4047]
[1724982525001,4.66,140.11,140.0,30.0986]
[1724982525203,0.05368886,140.07,140.04,0.04600527]
[1724982526205,3.5693,140.06,140.04,0.04600527]
[1724982526412,0.05368886,140.07,140.04,0.04600527]
[1724982526908,3.5696,140.05,140.04,0.04600527]
[1724982530210,27.42,140.05,139.97,27.42]
[1724982530412,27.42,140.05,139.86,7.1484]
[1724982530413,27.42,140.05,139.95,27.42]
[1724982530617,4.66,140.04,139.95,27.42]
[1724982531016,3.5706,140.01,139.96,3.5717]
[1724982531206,0.04691723,140.0,139.97,0.05054459]
[1724982534207,3.61781723,140.0,139.97,0.05054459]
[1724982537809,3.5712,139.99,139.97,0.05054459]
[1724982539114,3.5714,139.98,139.97,0.05054459]
[1724982544626,3.5712,139.99,139.97,0.05054459]
[1724982544919,0.04691723,140.0,139.97,0.05054459]
[1724982545112,3.61791723,140.0,139.97,0.05054459]
[1724982548912,0.04691723,140.0,139.97,0.05054459]
[1724982550430,3.5714,139.98,139.97,0.05054459]
[1724982556125,0.04691723,140.0,139.97,0.05054459]
[1724982556126,3.5711,139.99,139.97,0.05054459]
[1724982557035,3.5714,139.98,139.97,0.05054459]
[1724982559332,3.5712,139.99,139.97,0.05054459]
[1724982559633,0.04691723,140.0,139.97,0.05054459]
[1724982560232,3.61791723,140.0,139.97,0.05054459]
[1724982560936,3.5714,139.98,139.97,0.05054459]
[1724982562022,14.5514,139.98,139.97,0.05054459]
[1724982564136,3.5714,139.98,139.97,0.05054459]
[1724982574354,27.45,139.99,139.88,1.3608]
[1724982574641,27.45,139.95,139.88,1.3608]
[1724982575242,27.49648982,139.93,139.9,0.05502991]
[1724982575644,3.5733,139.91,139.9,0.05502991]
[1724982579753,3.573,139.92,139.9,0.05502991]
[1724982579956,0.04648982,139.93,139.9,0.05502991]
[1724982582046,0.04648982,139.93,139.9,3.62822991]
[1724982583144,0.04648982,139.93,139.91,3.5731]
[1724982583956,0.04648982,139.93,139.9,3.62832991]
[1724982584759,0.04648982,139.93,139.91,3.5731]
[1724982585462,0.04648982,139.93,139.92,3.5729]
[1724982586057,0.04648982,139.93,139.92,14.5529]
[1724982587366,77.78161273,139.99,139.92,10.98]
[1724982587550,77.78161273,139.99,139.94,10.98]
[1724982587751,3.5715,139.98,139.94,10.98]
[1724982587959,77.78161273,139.99,139.94,10.98]
[1724982588156,77.78161273,139.99,139.93,3.5724]
[1724982588461,3.5719,139.96,139.95,0.0496268]
[1724982588962,14.5517,139.97,139.95,0.0496268]
[1724982589766,3.5719,139.96,139.95,0.0496268]
[1724982594765,3.5717,139.97,139.95,0.0496268]
[1724982600976,3.5719,139.96,139.95,0.0496268]
[1724982602174,3.5716,139.97,139.95,0.0496268]
[1724982602471,0.04719176,139.98,139.95,0.0496268]
[1724982603275,3.61869176,139.98,139.95,0.0496268]
[1724982604977,0.04719176,139.98,139.95,0.0496268]
[1724982605176,10.98,139.96,139.95,0.0496268]
[1724982605973,14.5519,139.96,139.95,0.0496268]
[1724982606178,3.5719,139.96,139.95,0.0496268]
[1724982606370,18.06126747,139.96,139.95,0.0496268]
[1724982606677,14.5519,139.96,139.95,0.0496268]
[1724982606875,18.1805924,139.96,139.95,0.0496268]
[1724982607076,14.5519,139.96,139.95,0.0496268]
[1724982616369,0.04719176,139.98,139.95,0.0496268]
[1724982618472,3.5717,139.97,139.95,0.0496268]
[1724982619777,3.5719,139.96,139.95,0.0496268]
[1724982630594,19.23879176,139.98,139.95,0.0496268]
[1724982632889,4.68719176,139.98,139.95,0.0496268]
[1724982633587,8.25859176,139.98,139.95,0.0496268]
[1724982633988,0.04719176,139.98,139.95,0.0496268]
[1724982634691,0.04719176,139.98,139.95,1.3854268]
[1724982636594,3.61859176,139.98,139.95,1.3854268]
[1724982640093,0.04719176,139.98,139.95,4.9575268]
[1724982640295,0.04719176,139.98,139.95,1.3854268]
[1724982640887,0.04719176,139.98,139.95,0.0496268]
[1724982641092,10.98,139.96,139.95,0.0496268]
[1724982641492,14.5519,139.96,139.95,0.0496268]
[1724982644497,3.5719,139.96,139.95,0.0496268]
[1724982644903,4.64,139.97,139.95,0.0496268]
[1724982646405,8.2117,139.97,139.95,0.0496268]
[1724982648405,4.64,139.97,139.95,0.0496268]
[1724982648599,0.04719176,139.98,139.95,11.0296268]
[1724982650397,0.04719176,139.98,139.95,0.0496268]
[1724982651399,3.61859176,139.98,139.95,0.0496268]
[1724982652912,3.5716,139.97,139.95,0.0496268]
[1724982659518,3.5719,139.96,139.95,0.0496268]
[1724982660018,14.52570413,139.96,139.89,2.7263]
[1724982660222,10.98,139.94,139.89,2.7263]
[1724982660625,10.98,139.94,139.89,1.3227]
[1724982661222,3.573,139.92,139.9,0.05027571]
[1724982662224,3.5731,139.91,139.9,0.05027571]
[1724982662431,0.04878571,139.93,139.9,0.05027571]
[1724982662727,3.5729,139.92,139.9,0.05027571]
[1724982664528,3.5731,139.91,139.9,0.05027571]
[1724982667234,0.04878571,139.93,139.9,11.03027571]
[1724982668433,3.62148571,139.93,139.9,11.03027571]
[1724982668726,3.62148571,139.93,139.92,10.98]
[1724982668727,0.04878571,139.93,139.92,10.98]
[1724982669837,8.2114,139.98,139.92,10.98]
[1724982670134,8.2114,139.98,139.94,10.98]
[1724982670523,3.5712,139.99,139.94,10.98]
[1724982670833,0.05389651,139.98,139.95,0.0472684]
[1724982674635,3.62529651,139.98,139.95,0.0472684]
[1724982676539,0.05389651,139.98,139.95,0.0472684]
[1724982676737,0.05389651,139.98,139.96,10.98]
[1724982683952,0.05389651,139.98,139.97,10.98]
[1724982688049,3.5703,140.03,139.97,10.98]
[1724982688257,3.5703,140.03,139.99,10.98]
[1724982688971,3.5704,140.02,139.99,10.98]
[1724982689258,3.62414502,140.02,139.99,11.03191459]
[1724982690152,3.62414502,140.02,139.99,0.05191459]
[1724982690449,15.65374502,140.02,139.99,0.05191459]
[1724982690648,10.98,140.0,139.99,0.05191459]
[1724982690955,3.5708,140.0,139.99,0.05191459]
[1724982691151,4.62,140.01,139.99,0.05191459]
[1724982691555,4.62,140.01,139.99,11.03191459]
[1724982691852,0.05374502,140.02,139.99,11.03191459]
[1724982692844,0.05374502,140.02,140.0,10.98]
[1724982693549,0.05374502,140.02,140.01,10.98]
[1724982696451,4.62,140.07,140.01,12.3596]
[1724982696651,4.62,140.07,140.04,10.98]
[1724982697263,8.1893,140.07,140.04,10.98]
[1724982697562,8.1893,140.07,140.04,11.03267252]
[1724982698155,3.5693,140.06,140.04,11.03267252]
[1724982698554,4.62,140.08,140.04,11.03267252]
[1724982698759,10.98,140.11,140.05,10.98]
[1724982698957,4.62,140.1,140.05,10.98]
[1724982699249,4.62,140.1,140.04,11.03267252]
[1724982700055,4.62,140.1,140.05,10.98]
[1724982700456,10.98,140.11,140.05,10.98]
[1724982700951,3.5687,140.09,140.05,10.98]
[1724982701351,0.9985,140.15,140.07,10.98]
[1724982701565,345.98,140.13,140.09,0.05228928]
[1724982702064,3.5682,140.11,140.09,0.05228928]
[1724982702666,8.1882,140.11,140.09,0.05228928]
[1724982704568,3.5682,140.11,140.09,0.05228928]
[1724982704960,4.62,140.12,140.09,0.05228928]
[1724982704961,3.5678,140.12,140.09,0.05228928]
[1724982706167,3.5681,140.11,140.09,0.05228928]
[1724982708361,3.568,140.12,140.09,0.05228928]
[1724982708563,10.98,140.14,140.09,0.05228928]
[1724982708765,3.568,140.12,140.09,0.05228928]
[1724982709167,3.568,140.12,140.09,11.03228928]
[1724982716073,15.6,140.14,140.09,0.05228928]
[1724982716370,4.62,140.13,140.09,0.05228928]
[1724982716570,3.568,140.11,140.09,0.05228928]
[1724982716775,4.62,140.14,140.1,10.98]
[1724982716979,4.62,140.15,140.1,10.98]
[1724982717174,15.6,140.15,140.11,0.04808153]
[1724982717372,4.62,140.14,140.11,0.04808153]
[1724982717678,3.5678,140.12,140.11,0.04808153]
[1724982718975,3.5677,140.13,140.11,0.04808153]
[1724982719383,4.62,140.14,140.11,0.04808153]
[1724982719675,3.5675,140.13,140.11,0.04808153]
[1724982720677,3.5678,140.12,140.11,0.04808153]
[1724982721971,14.5478,140.12,140.11,0.04808153]
[1724982722171,14.5478,140.12,140.06,1.3985]
[1724982722172,3.5688,140.09,140.06,1.3985]
[1724982722372,3.5688,140.09,140.06,12.3785]
[1724982722569,4.62,140.14,140.08,10.98]
[1724982722875,4.62,140.2,140.13,10.98]
[1724982723072,0.05389782,140.18,140.15,0.04852033]
[1724982723272,3.567,140.16,140.15,0.04852033]
[1724982724474,3.62039782,140.18,140.15,0.04852033]
[1724982724681,8.24039782,140.18,140.15,0.04852033]
[1724982724975,4.67389782,140.18,140.16,10.98]
[1724982725179,0.05389782,140.18,140.16,10.98]
[1724982729086,0.05389782,140.18,140.17,10.98]
[1724982729987,0.05389782,140.18,140.15,0.04852033]
[1724982730573,3.62029782,140.18,140.15,0.04852033]
[1724982731580,3.5666,140.17,140.15,0.04852033]
[1724982733782,3.5668,140.16,140.15,0.04852033]
[1724982734088,16.91205836,140.16,140.03,5.8995]
[1724982734286,16.91205836,140.16,140.05,10.98]
[1724982734287,10.98,140.12,140.05,10.98]
[1724982734490,14.49424741,140.12,140.05,10.98]
[1724982735191,10.98,140.09,140.07,0.05484303]
[1724982735594,15.6,140.09,140.07,0.05484303]
[1724982736195,3.5688,140.08,140.07,0.05484303]
[1724982737292,4.62,140.09,140.07,0.05484303]
[1724982738393,3.5688,140.08,140.07,0.05484303]
[1724982741189,3.5688,140.08,140.0,32.2889]
[1724982741190,27.41,140.08,140.0,1.3081]
[1724982742191,27.41,140.08,140.03,0.04715729]
[1724982742192,0.05411021,140.05,140.03,0.04715729]
[1724982742390,4.67411021,140.05,140.03,0.04715729]
[1724982743989,8.24371021,140.05,140.03,0.04715729]
[1724982744289,4.67411021,140.05,140.03,0.04715729]
[1724982744887,3.5698,140.04,140.03,0.04715729]
[1724982746091,4.67411021,140.05,140.03,0.04715729]
[1724982746891,8.24371021,140.05,140.03,0.04715729]
[1724982749791,4.67411021,140.05,140.03,0.04715729]
[1724982755094,8.24371021,140.05,140.03,0.04715729]
[1724982759216,4.67411021,140.05,140.03,0.04715729]
[1724982759714,0.05411021,140.05,140.03,0.04715729]
[1724982774332,233.84450588,140.18,140.04,10.97]
[1724982774533,3.5682,140.11,140.07,10.97]
[1724982774833,15.61,140.12,140.05,10.97]
[1724982775033,3.5687,140.09,140.05,10.97]
[1724982775239,3.5687,140.09,140.04,13.6336]
[1724982775435,0.05355601,140.08,140.05,0.04613886]